fUSD/lending_fUSD_20240814
["ID","MTS","AMOUNT","RATE_DAILY","PERIOD"]
[334940408,1723662639893,-329.35516617,0.00011,2]
[334940410,1723662639903,-416.47887261,0.00011,2]
[334940412,1723662639915,-5464.19112739,0.00011,2]
[334940420,1723662640014,-1200.0,0.00011,2]
[334940588,1723662643462,-354.726,0.00010891,2]
[334940599,1723662646101,-721.274,0.00010891,2]
[334940600,1723662646112,-155.0,0.00010951,2]
[334940601,1723662646123,-1080.49725,0.00011,2]
[334940612,1723663112613,186.38,8.219e-05,2]
[334940613,1723663232701,-9000000.0,0.00030685,60]
[334940614,1723663237917,-9000000.0,0.00030685,60]
[334940615,1723663248437,-9000000.0,0.00030685,60]
[334940616,1723663252258,-9000000.0,0.00030685,60]
[334940617,1723663261270,-9000000.0,0.00030685,60]
[334940618,1723663275052,-9000000.0,0.00030685,60]
[334940619,1723663308421,15483.10746637,9.899e-05,2]
[334940620,1723663309480,340.20446707,0.00025276,120]
[334940621,1723663310496,340.20446707,0.00026678,120]
[334940622,1723663372622,6215.79,9.89e-05,2]
[334940623,1723663393359,150.5,0.000178,120]
[334940624,1723663393417,153.02,0.000178,120]
[334940625,1723663393526,150.5,0.000178,120]
[334940626,1723663393870,150.5,0.0001779,120]
[334940627,1723663394044,150.5,0.0001779,120]
[334940628,1723663394339,150.5,0.0001778,120]
[334940629,1723663394497,150.5,0.0001778,120]
[334940630,1723663394802,150.5,0.0002449,120]
[334940631,1723663394980,150.5,0.0002449,120]
[334940632,1723663395283,150.5,0.0002448,120]
[334940633,1723663395583,150.5,0.0002448,120]
[334940634,1723663395769,150.5,0.0002447,120]
[334940635,1723663396043,150.5,0.0002447,120]
[334940636,1723663396280,150.5,0.0002449,120]
[334940637,1723663396518,205.22,0.0002449,120]
[334940638,1723663396744,203.17,0.0002448,120]
[334940639,1723663511091,250.0,9.899e-05,2]
[334940640,1723663517350,440.08291615,9.899e-05,2]
[334940647,1723663583743,177.06,8.219e-05,2]
[334940664,1723663682326,7023.71444299,0.00027,120]
[334940682,1723663800791,-5160336.54013789,0.00030685,60]
[334940683,1723663800840,-9794.95,0.00030685,117]
[334940684,1723663800884,-454.41013052,0.00030685,30]
[334940685,1723663800925,-1000.0,0.00030685,30]
[334940686,1723663800961,-1000.0,0.00030685,30]
[334940687,1723663800997,-1000.0,0.00030685,30]
[334940688,1723663801032,-1000.0,0.00030685,30]
[334940689,1723663801073,-1000.0,0.00030685,30]
[334940690,1723663801116,-1000.0,0.00030685,30]
[334940691,1723663801159,-1000.0,0.00030685,30]
[334940692,1723663801199,-365.45301907,0.00030685,30]
[334940693,1723663801246,-487.34519424,0.00030685,30]
[334940694,1723663801289,-364.22983766,0.00030685,30]
[334940695,1723663801331,-2262.54447572,0.00030685,30]
[334940696,1723663801373,-1918.15470327,0.00030685,30]
[334940697,1723663801415,-705.05365913,0.00030685,30]
[334940698,1723663801451,-3000.0,0.00030685,30]
[334940699,1723663801494,-199.19177684,0.00030685,30]
[334940700,1723663801539,-197.64777289,0.00030685,30]
[334940701,1723663801576,-336.04131317,0.00030685,30]
[334940702,1723663801623,-1519.79483119,0.00030685,30]
[334940703,1723663801666,-2933.40399051,0.00030685,30]
[334940704,1723663801702,-2730.84546229,0.00030685,30]
[334940705,1723663801737,-194.77036962,0.00030685,30]
[334940706,1723663801773,-255.11091538,0.00030685,30]
[334940707,1723663801808,-2566.20311217,0.00030685,30]
[334940708,1723663801843,-1690.20953651,0.00030685,30]
[334940709,1723663801877,-2218.68516019,0.00030685,30]
[334940710,1723663801911,-288.77406203,0.00030685,30]
[334940711,1723663801944,-2100.01419996,0.00030685,30]
[334940712,1723663801981,-266.0,0.00030685,30]
[334940713,1723663802016,-1053.74256871,0.00030685,120]
[334940714,1723663802052,-20000.0,0.00030685,30]
[334940715,1723663802094,-5400000.0,0.00030685,120]
[334940716,1723663802136,-5000.0,0.00030685,30]
[334940717,1723663802179,-10262.0,0.00030685,120]
[334940718,1723663802217,-241.55935506,0.00030685,60]
[334940719,1723663802259,-10000.0,0.00030685,30]
[334940720,1723663802297,-6868.75227865,0.00030685,120]
[334940721,1723663802335,-10000.0,0.00030685,30]
[334940722,1723663802372,-17883.5717666,0.00030685,90]
[334940723,1723663802408,-16156.16992797,0.00030685,60]
[334940724,1723663802446,-2243.77839514,0.00030685,120]
[334940725,1723663802483,-150.0,0.00030685,120]
[334940726,1723663802521,-1765.46473827,0.00030685,120]
[334940727,1723663802554,-186.33266468,0.00030685,120]
[334940728,1723663802588,-2137.41835709,0.00030685,120]
[334940729,1723663802624,-1094.90013108,0.00030685,120]
[334940730,1723663802663,-20000.0,0.00030685,120]
[334940731,1723663802704,-1524952.47081092,0.00030685,30]
[334940732,1723663802739,-103246.33870085,0.00030685,30]
[334940733,1723663802780,-49145.35093787,0.00030685,120]
[334940734,1723663802817,-102337.22772939,0.00030685,120]
[334940735,1723663802854,-1102.57617798,0.00030685,120]
[334940736,1723663802894,-244.75564414,0.00030685,60]
[334940737,1723663802930,-153.0,0.00030685,120]
[334940738,1723663802965,-152.2451058,0.00030685,120]
[334940739,1723663803001,-7872.43194439,0.00030685,30]
[334940740,1723663803039,-537.78593727,0.00030685,120]
[334940741,1723663803076,-4658.6337695,0.00030685,120]
[334940742,1723663803125,-1842.34009783,0.00030685,30]
[334940743,1723663803163,-443.9308411,0.00030685,30]
[334940744,1723663803201,-2069.74694611,0.00030685,30]
[334940745,1723663803240,-1568.08622243,0.00030685,30]
[334940746,1723663803280,-25520.12840211,0.00030685,30]
[334940747,1723663803318,-37655.02785199,0.00030685,120]
[334940748,1723663803362,-407268.85903682,0.00030685,120]
[334940749,1723663803444,1000.0,9.886e-05,2]
[334940758,1723663832673,-205.72,9.932e-05,2]
[334940759,1723663832682,-1540.99676959,9.988e-05,2]
[334940760,1723663832693,-1132.58792597,9.999e-05,2]
[334940761,1723663832703,-155.1718428,9.999e-05,2]
[334940762,1723663832712,-550.0,0.0001,2]
[334940763,1723663832721,-347.69615481,0.00010097,2]
[334940764,1723663832730,-166.24,0.00010169,2]
[334940765,1723663832739,-297.48958849,0.00010234,2]
[334940766,1723663832748,-179.44,0.00010235,2]
[334940767,1723663832757,-357.45302385,0.00010473,2]
[334940768,1723663832766,-177.06,0.00010474,2]
[334940769,1723663832775,-1032.1045551,0.000105,2]
[334940770,1723663832785,-5403.79429818,0.00010699,2]
[334940771,1723663832794,-300.0,0.00010712,2]
[334940772,1723663832804,-1780.70658812,0.00010713,2]
[334940773,1723663832814,-13234.5553,0.000108,2]
[334940774,1723663832824,-1911.647,0.000108,2]
[334940775,1723663832833,-155.0,0.00010854,2]
[334940776,1723663832842,-155.0,0.00010854,2]
[334940777,1723663832852,-218.91005949,0.00010854,2]
[334940778,1723663832866,-1215.06527481,0.00010855,2]
[334940779,1723663832876,-1542.0,0.00010889,2]
[334940780,1723663832885,-289.0,0.00010889,2]
[334940781,1723663832894,-1257.0,0.00010889,2]
[334940782,1723663832903,-5843.0,0.00010889,2]
[334940783,1723663832915,-150.0,0.0001089,2]
[334940785,1723663832924,-203.24103,0.0001089,2]
[334940787,1723663832933,-225.40618881,0.0001089,2]
[334940788,1723663832942,-150.0,0.00010899,2]
[334940790,1723663832951,-1525.6402,0.000109,2]
[334940792,1723663832960,-1876.7215,0.000109,2]
[334940793,1723663832969,-1397.0818,0.000109,2]
[334940795,1723663832979,-7707.56018795,0.000109,2]
[334940797,1723663832988,-291.8688,0.000109,2]
[334940799,1723663832997,-1215.06527481,0.000109,2]
[334940801,1723663833006,-166.8038496,0.000109,2]
[334940803,1723663833015,-313.33566869,0.000109,2]
[334940805,1723663833024,-687.02501385,0.00010952,2]
[334940807,1723663833034,-1725.0,0.00010953,2]
[334940809,1723663833043,-338.72878612,0.00010954,2]
[334940810,1723663833052,-155.10762716,0.00010954,2]
[334940811,1723663833062,-155.318472,0.00010954,2]
[334940812,1723663833072,-203.41395605,0.00010958,2]
[334940813,1723663833081,-454.17,0.00010959,2]
[334940814,1723663833091,-380.32741541,0.00010959,2]
[334940815,1723663833100,-155.18237905,0.00010959,2]
[334940816,1723663833111,-155.0,0.00010959,2]
[334940817,1723663833121,-164.37927092,0.0001096,2]
[334940818,1723663833131,-155.0,0.0001096,2]
[334940819,1723663833141,-155.0,0.00010961,2]
[334940820,1723663833150,-528.91996067,0.00010961,2]
[334940821,1723663833160,-151.01,0.0001099,2]
[334940822,1723663833170,-151.01,0.0001099,2]
[334940823,1723663833179,-6174.25217823,0.00010997,2]
[334940824,1723663833188,-616.0,0.00011,2]
[334940825,1723663833197,-6619.15854598,0.00011,2]
[334940826,1723663833209,-46496.65951031,0.00011,2]
[334940827,1723663833220,-1650.99,0.00011,2]
[334940828,1723663833231,-2005.57355483,0.00011,2]
[334940829,1723663833242,-322.91174239,0.00011,2]
[334940830,1723663833258,-892.29859306,0.00011,2]
[334940831,1723663833269,-8566.99748978,0.00011,2]
[334940832,1723663833284,-3382.5278948,0.00011,2]
[334940833,1723663833295,-576.75531807,0.00011,2]
[334940834,1723663833307,-14391.01,0.00011,2]
[334940838,1723663838170,-264.49036255,0.00010566,2]
[334940839,1723663838179,-385.45575057,0.00010889,2]
[334940840,1723663838388,-236.54424943,0.00010889,2]
[334940841,1723663838399,-16887.35673126,0.00011,2]
[334940842,1723663838410,-5000.0,0.00011,2]
[334940844,1723663838469,-843.27,0.00011,2]
[334940845,1723663838480,-8847.75,0.00011,2]
[334940859,1723663840102,-1213.13686397,0.00011,2]
[334940860,1723663840114,-354.33584849,0.00011,2]
[334940861,1723663840171,-687.06,0.00011,2]
[334940862,1723663840183,-335.545,0.00011,2]
[334940863,1723663840194,-2437.59878754,0.00011,2]
[334940864,1723663840239,-531.2423039,0.00011,2]
[334941164,1723663843476,-576.09,0.00010889,2]
[334941166,1723663843488,-301.25385499,0.00010889,2]
[334941170,1723663843512,-446.25,0.00010889,2]
[334941688,1723663848696,-600.40614501,0.00010889,2]
[334941690,1723663848706,-14896.562,0.00010889,2]
[334941692,1723663848715,-500.0,0.00011,2]
[334941694,1723663848724,-61766.50082429,0.00011,2]
[334941696,1723663848733,-439108.04456261,0.00011,2]
[334941698,1723663848743,-738142.82898613,0.00011,2]
[334941700,1723663848752,-142057.66905024,0.00011,2]
[334941702,1723663848761,-151.0,0.00011,2]
[334941704,1723663848771,-260.246355,0.00011,2]
[334941706,1723663848780,-2000.0,0.00011,2]
[334941708,1723663848789,-200.0,0.00011,2]
[334941710,1723663848798,-1137.0,0.00011,2]
[334941712,1723663848808,-1895.0,0.00011,2]
[334941714,1723663848817,-3292.0,0.00011,2]
[334941716,1723663848826,-1178.0,0.00011,2]
[334941717,1723663848836,-764.0,0.00011,2]
[334941719,1723663848845,-2000.0,0.00011,2]
[334941721,1723663848855,-200.0,0.00011,2]
[334941723,1723663848864,-5000.0,0.00011,2]
[334941725,1723663848874,-1004.97074515,0.00011,2]
[334941727,1723663848884,-535786.75660398,0.00011,2]
[334941729,1723663848893,-1076.0,0.00011,2]
[334941731,1723663848903,-250.0,0.00011,2]
[334941733,1723663848912,-225.86,0.00011,2]
[334941735,1723663848921,-603.39257297,0.00011,2]
[334941737,1723663848930,-4122.0,0.00011014,2]
[334941739,1723663848939,-250.0,0.000111,2]
[334941741,1723663848948,-250.0,0.000111,2]
[334941743,1723663848957,-250.0,0.000111,2]
[334941745,1723663848967,-250.0,0.000111,2]
[334941747,1723663848976,-250.0,0.000111,2]
[334941749,1723663848985,-250.0,0.000111,2]
[334941751,1723663848994,-413.7,0.000111,2]
[334941753,1723663849004,-200.0,0.0001111,2]
[334941755,1723663849014,-1000.0,0.00011122,2]
[334941757,1723663849023,-189.72,0.00011143,2]
[334941759,1723663849032,-359.81917128,0.00011149,2]
[334941761,1723663849043,-169.13,0.0001115,2]
[334941763,1723663849052,-195.13980607,0.0001122,2]
[334941765,1723663849061,-200.0,0.00011221,2]
[334941767,1723663849071,-211.03413449,0.00011332,2]
[334941769,1723663849080,-200.0,0.00011333,2]
[334941771,1723663849089,-200.0,0.00011447,2]
[334941773,1723663849098,-10000.0,0.00011554,2]
[334941775,1723663849108,-420.0,0.00011775,2]
[334941777,1723663849119,-255.0,0.00011945,2]
[334941779,1723663849129,-5000.0,0.00012,2]
[334941781,1723663849143,-600.0,0.00012,2]
[334941783,1723663849153,-369.91,0.00012,2]
[334941785,1723663849163,-369.91,0.00012,2]
[334941787,1723663849172,-369.91,0.00012,2]
[334941789,1723663849181,-369.91,0.00012,2]
[334941791,1723663849191,-369.91,0.00012,2]
[334941793,1723663849200,-369.91,0.00012,2]
[334941795,1723663849210,-369.91,0.00012,2]
[334941797,1723663849219,-369.91,0.00012,2]
[334941799,1723663849229,-369.91,0.00012,2]
[334941801,1723663849239,-369.91,0.00012,2]
[334941803,1723663849248,-369.91,0.00012,2]
[334941805,1723663849258,-369.91,0.00012,2]
[334941807,1723663849268,-369.91,0.00012,2]
[334941809,1723663849277,-369.91,0.00012,2]
[334941811,1723663849287,-369.91,0.00012,2]
[334941813,1723663849297,-369.91,0.00012,2]
[334941815,1723663849306,-369.91,0.00012,2]
[334941817,1723663849316,-369.91,0.00012,2]
[334941819,1723663849326,-369.91,0.00012,2]
[334941821,1723663849336,-369.91,0.00012,2]
[334941822,1723663849345,-369.91,0.00012,2]
[334941824,1723663849355,-369.91,0.00012,2]
[334941826,1723663849364,-369.91,0.00012,2]
[334941828,1723663849378,-369.91,0.00012,2]
[334941830,1723663849388,-369.91,0.00012,2]
[334941832,1723663849397,-369.91,0.00012,2]
[334941834,1723663849407,-369.91,0.00012,2]
[334941836,1723663849417,-369.91,0.00012,2]
[334941838,1723663849426,-369.91,0.00012,2]
[334941840,1723663849436,-165.14,0.00012033,2]
[334941842,1723663849445,-1108.99,0.00012087,2]
[334941844,1723663849454,-19999.99,0.00012087,2]
[334941846,1723663849464,-29999.99,0.00012087,2]
[334941848,1723663849474,-1000.0,0.00012357,2]
[334941850,1723663849484,-189.72,0.00012381,2]
[334941852,1723663849493,-169.13,0.00012389,2]
[334941854,1723663849503,-150.0,0.000124,2]
[334941856,1723663849512,-150.0,0.000124,2]
[334941858,1723663849524,-7707.56018791,0.00012411,2]
[334941860,1723663849533,-3471.32403618,0.0001251,2]
[334941862,1723663849543,-150.21952285,0.00012549,5]
[334941863,1723663849552,-177.06,0.00012729,2]
[334941864,1723663849561,-313.33566867,0.00012851,2]
[334941865,1723663849572,-165.14,0.00012884,2]
[334941866,1723663849581,-587.0,0.00012943,2]
[334941867,1723663849591,-166.8038496,0.0001315,2]
[334941868,1723663849602,-1000.0,0.00013593,2]
[334941869,1723663849612,-682.6727962,0.00013597,2]
[334941870,1723663849626,-5721.6096,0.00013598,2]
[334941871,1723663849639,-189.72,0.00013619,2]
[334941872,1723663849648,-169.13,0.00013628,2]
[334941873,1723663849658,-200.0,0.00013673,2]
[334941874,1723663849667,-151.01,0.00013688,2]
[334941875,1723663849677,-2058.08405941,0.00013695,2]
[334941876,1723663849686,-155.09925405,0.00013697,2]
[334941877,1723663849696,-500.0,0.00013698,2]
[334941878,1723663849705,-304.49717722,0.00013698,2]
[334941879,1723663849715,-500.0,0.00013698,2]
[334941880,1723663849725,-500.0,0.00013698,2]
[334941881,1723663849735,-500.0,0.00013698,2]
[334941882,1723663849744,-243.25691331,0.00013698,2]
[334941883,1723663849753,-520.69,0.00013698,2]
[334941884,1723663849763,-500.0,0.00013698,2]
[334941885,1723663849773,-500.0,0.00013698,2]
[334941886,1723663849782,-586.24,0.00013698,2]
[334941887,1723663849792,-500.0,0.00013698,2]
[334941888,1723663849802,-500.0,0.00013698,2]
[334941889,1723663849811,-500.0,0.00013698,2]
[334941890,1723663849821,-553.87,0.00013698,2]
[334941891,1723663849830,-581.42,0.00013698,2]
[334941892,1723663849839,-500.0,0.00013698,2]
[334941893,1723663849849,-500.0,0.00013698,2]
[334941894,1723663849858,-500.0,0.00013698,2]
[334941895,1723663849869,-500.0,0.00013698,2]
[334941896,1723663849878,-500.0,0.00013698,2]
[334941897,1723663849887,-500.0,0.00013698,2]
[334941898,1723663849896,-500.0,0.00013698,2]
[334941899,1723663849905,-500.0,0.00013698,2]
[334941900,1723663849915,-500.0,0.00013698,2]
[334941901,1723663849924,-500.0,0.00013698,2]
[334941902,1723663849933,-500.0,0.00013698,2]
[334941903,1723663849942,-500.0,0.00013698,2]
[334941904,1723663849951,-500.0,0.00013698,2]
[334941905,1723663849961,-500.0,0.00013698,2]
[334941906,1723663849970,-500.0,0.00013698,2]
[334941907,1723663849979,-500.0,0.00013698,2]
[334941908,1723663849988,-500.0,0.00013698,2]
[334941909,1723663849997,-502.34,0.00013698,2]
[334941910,1723663850006,-500.0,0.00013698,2]
[334941911,1723663850015,-365.07858572,0.00013698,2]
[334941912,1723663850025,-500.0,0.00013698,2]
[334941913,1723663850034,-500.0,0.00013698,2]
[334941914,1723663850043,-500.0,0.00013698,2]
[334941915,1723663850052,-500.0,0.00013698,2]
[334941916,1723663850061,-500.0,0.00013698,2]
[334941917,1723663850070,-500.0,0.00013698,2]
[334941918,1723663850079,-500.0,0.00013698,2]
[334941919,1723663850088,-500.0,0.00013698,2]
[334941920,1723663850097,-500.0,0.00013698,2]
[334941921,1723663850106,-500.0,0.00013698,2]
[334941922,1723663850115,-631.53479359,0.00013698,2]
[334941923,1723663850126,-500.0,0.00013698,2]
[334941924,1723663850135,-500.0,0.00013698,2]
[334941925,1723663850144,-500.0,0.00013698,2]
[334941926,1723663850153,-500.0,0.00013698,2]
[334941927,1723663850163,-500.0,0.00013698,2]
[334941928,1723663850172,-500.0,0.00013698,2]
[334941929,1723663850181,-500.0,0.00013698,2]
[334941930,1723663850191,-500.0,0.00013698,2]
[334941931,1723663850200,-500.0,0.00013698,2]
[334941932,1723663850209,-500.0,0.00013698,2]
[334941933,1723663850219,-500.0,0.00013698,2]
[334941934,1723663850228,-500.0,0.00013698,2]
[334941935,1723663850238,-500.0,0.00013698,2]
[334941936,1723663850247,-500.0,0.00013698,2]
[334941937,1723663850257,-608.76,0.00013698,2]
[334941939,1723663850267,-500.0,0.00013698,2]
[334941940,1723663850276,-500.0,0.00013698,2]
[334941942,1723663850285,-500.0,0.00013698,2]
[334941943,1723663850295,-500.0,0.00013698,2]
[334941944,1723663850304,-500.0,0.00013698,2]
[334941945,1723663850313,-500.0,0.00013698,2]
[334941946,1723663850322,-642.44,0.00013698,2]
[334941947,1723663850332,-500.0,0.00013698,2]
[334941948,1723663850341,-500.0,0.00013698,2]
[334941949,1723663850351,-500.0,0.00013698,2]
[334941950,1723663850359,-500.0,0.00013698,2]
[334941951,1723663850371,-500.0,0.00013698,2]
[334941952,1723663850381,-500.0,0.00013698,2]
[334941953,1723663850390,-500.0,0.00013698,2]
[334941954,1723663850399,-500.0,0.00013698,2]
[334941955,1723663850408,-500.0,0.00013698,2]
[334941956,1723663850418,-500.0,0.00013698,2]
[334941957,1723663850427,-500.0,0.00013698,2]
[334941958,1723663850436,-501.14,0.00013698,2]
[334941959,1723663850445,-500.0,0.00013698,2]
[334941960,1723663850454,-582.85,0.00013698,2]
[334941961,1723663850464,-596.48,0.00013698,2]
[334941962,1723663850598,-500.0,0.00013698,2]
[334941963,1723663850608,-500.0,0.00013698,2]
[334941964,1723663850620,-3718.96,0.00013698,2]
[334941965,1723663850629,-643.34,0.00013698,2]
[334941966,1723663850638,-500.0,0.00013698,2]
[334941967,1723663850647,-616.55,0.00013698,2]
[334941968,1723663850656,-489.88863128,0.00013698,2]
[334941969,1723663850666,-500.0,0.00013698,2]
[334941970,1723663850675,-500.0,0.00013698,2]
[334941971,1723663850685,-500.0,0.00013698,2]
[334941972,1723663850695,-500.0,0.00013698,2]
[334941973,1723663850705,-500.0,0.00013698,2]
[334941974,1723663850715,-500.0,0.00013698,2]
[334941975,1723663850726,-500.0,0.00013698,2]
[334941976,1723663850736,-500.0,0.00013698,2]
[334941977,1723663850745,-500.0,0.00013698,2]
[334941978,1723663850755,-500.0,0.00013698,2]
[334941979,1723663850764,-500.0,0.00013698,2]
[334941980,1723663850774,-502.89954706,0.00013698,2]
[334941981,1723663850783,-500.0,0.00013698,2]
[334941982,1723663850793,-500.0,0.00013698,2]
[334941983,1723663850803,-500.0,0.00013698,2]
[334941984,1723663850812,-500.0,0.00013698,2]
[334941985,1723663850822,-500.0,0.00013698,2]
[334941986,1723663850831,-500.0,0.00013698,2]
[334941987,1723663850841,-500.0,0.00013698,2]
[334941988,1723663850850,-500.0,0.00013698,2]
[334941989,1723663850860,-589.62,0.00013698,2]
[334941990,1723663850872,-500.0,0.00013698,2]
[334941991,1723663850881,-572.8,0.00013698,2]
[334941992,1723663850891,-500.52,0.00013698,2]
[334941993,1723663850900,-500.0,0.00013698,2]
[334941994,1723663850909,-500.0,0.00013698,2]
[334941995,1723663850919,-500.0,0.00013698,2]
[334941996,1723663850928,-500.0,0.00013698,2]
[334941997,1723663850937,-500.0,0.00013698,2]
[334941998,1723663850946,-500.0,0.00013698,2]
[334941999,1723663850955,-500.0,0.00013698,2]
[334942000,1723663850964,-500.0,0.00013698,2]
[334942001,1723663850973,-500.0,0.00013698,2]
[334942002,1723663850983,-500.0,0.00013698,2]
[334942003,1723663850992,-500.0,0.00013698,2]
[334942004,1723663851002,-500.0,0.00013698,2]
[334942005,1723663851011,-500.0,0.00013698,2]
[334942006,1723663851020,-500.0,0.00013698,2]
[334942007,1723663851029,-500.0,0.00013698,2]
[334942008,1723663851038,-500.0,0.00013698,2]
[334942009,1723663851047,-500.0,0.00013698,2]
[334942010,1723663851057,-500.0,0.00013698,2]
[334942011,1723663851067,-500.0,0.00013698,2]
[334942012,1723663851076,-500.0,0.00013698,2]
[334942013,1723663851085,-150.0,0.00013698,2]
[334942014,1723663851094,-500.0,0.00013698,2]
[334942015,1723663851103,-500.0,0.00013698,2]
[334942016,1723663851112,-500.0,0.00013698,2]
[334942017,1723663851123,-500.0,0.00013698,2]
[334942018,1723663851132,-500.0,0.00013698,2]
[334942019,1723663851141,-500.0,0.00013698,2]
[334942020,1723663851151,-500.0,0.00013698,2]
[334942021,1723663851160,-500.0,0.00013698,2]
[334942022,1723663851170,-500.0,0.00013698,2]
[334942023,1723663851179,-500.0,0.00013698,2]
[334942024,1723663851188,-500.0,0.00013698,2]
[334942025,1723663851198,-500.0,0.00013698,2]
[334942026,1723663851207,-500.0,0.00013698,2]
[334942027,1723663851216,-620.93,0.00013698,2]
[334942028,1723663851226,-623.75,0.00013698,2]
[334942029,1723663851237,-500.0,0.00013698,2]
[334942030,1723663851247,-500.0,0.00013698,2]
[334942031,1723663851256,-526.22,0.00013698,2]
[334942032,1723663851265,-501.72538852,0.00013698,2]
[334942033,1723663851275,-500.0,0.00013698,2]
[334942034,1723663851285,-500.0,0.00013698,2]
[334942035,1723663851295,-500.0,0.00013698,2]
[334942036,1723663851305,-500.0,0.00013698,2]
[334942037,1723663851316,-500.0,0.00013698,2]
[334942038,1723663851325,-500.0,0.00013698,2]
[334942039,1723663851334,-500.0,0.00013698,2]
[334942040,1723663851343,-500.0,0.00013698,2]
[334942041,1723663851353,-500.0,0.00013698,2]
[334942042,1723663851363,-500.0,0.00013698,2]
[334942043,1723663851373,-500.0,0.00013698,2]
[334942044,1723663851383,-500.0,0.00013698,2]
[334942045,1723663851392,-500.0,0.00013698,2]
[334942046,1723663851402,-500.0,0.00013698,2]
[334942047,1723663851413,-500.0,0.00013698,2]
[334942048,1723663851423,-500.0,0.00013698,2]
[334942049,1723663851432,-500.0,0.00013698,2]
[334942050,1723663851442,-644.88,0.00013698,2]
[334942051,1723663851451,-500.0,0.00013698,2]
[334942052,1723663851460,-620.93678,0.00013698,2]
[334942053,1723663851470,-500.0,0.00013698,2]
[334942054,1723663851479,-500.0,0.00013698,2]
[334942055,1723663851489,-500.0,0.00013698,2]
[334942056,1723663851498,-500.0,0.00013698,2]
[334942057,1723663851507,-500.0,0.00013698,2]
[334942058,1723663851516,-500.0,0.00013698,2]
[334942059,1723663851530,-500.0,0.00013698,2]
[334942060,1723663851539,-500.0,0.00013698,2]
[334942061,1723663851549,-500.0,0.00013698,2]
[334942062,1723663851559,-500.0,0.00013698,2]
[334942063,1723663851571,-500.0,0.00013698,2]
[334942064,1723663851580,-500.0,0.00013698,2]
[334942065,1723663851589,-641.34,0.00013698,2]
[334942066,1723663851599,-500.0,0.00013698,2]
[334942067,1723663851609,-500.0,0.00013698,2]
[334942068,1723663851618,-500.0,0.00013698,2]
[334942069,1723663851628,-500.0,0.00013698,2]
[334942070,1723663851638,-500.0,0.00013698,2]
[334942071,1723663851647,-500.0,0.00013698,2]
[334942072,1723663851656,-545.45,0.00013698,2]
[334942073,1723663851665,-500.0,0.00013698,2]
[334942074,1723663851674,-609.28346238,0.00013698,2]
[334942075,1723663851683,-500.0,0.00013698,2]
[334942076,1723663851692,-500.0,0.00013698,2]
[334942077,1723663851702,-500.0,0.00013698,2]
[334942078,1723663851711,-500.21,0.00013698,2]
[334942079,1723663851720,-500.0,0.00013698,2]
[334942080,1723663851729,-615.75,0.00013698,2]
[334942081,1723663851738,-500.0,0.00013698,2]
[334942082,1723663851747,-500.0,0.00013698,2]
[334942083,1723663851756,-500.0,0.00013698,2]
[334942084,1723663851766,-500.0,0.00013698,2]
[334942085,1723663851775,-500.0,0.00013698,2]
[334942086,1723663851784,-500.0,0.00013698,2]
[334942087,1723663851794,-500.0,0.00013698,2]